bitfinex/quotes_SOLUSD_20251103
["timestamp","ask_amount","ask_price","bid_price","bid_amount"]
[1762201393233,0.72,166.29,166.25,6.01503759]
[1762201393409,4.69744635,166.29,166.25,6.01503759]
[1762201393605,0.72,166.29,166.25,6.72503759]
[1762201393845,4.69744635,166.29,166.25,6.72503759]
[1762201394016,0.72,166.28,166.22,0.71]
[1762201394329,0.72,166.28,166.23,0.71]
[1762201395522,0.72,166.28,166.2,6.72684717]
[1762201395752,3.97744635,166.27,166.2,6.01684717]
[1762201396052,3.97744635,166.26,166.2,21.7689651]
[1762201396258,4.69744635,166.27,166.2,21.7689651]
[1762201396551,3.97744635,166.26,166.2,21.7689651]
[1762201396869,4.69744635,166.26,166.2,21.7689651]
[1762201397026,3.97744635,166.25,166.2,21.7689651]
[1762201397365,3.97744635,166.24,166.21,0.71]
[1762201397546,4.69744635,166.25,166.2,21.0589651]
[1762201397721,3.97744635,166.24,166.2,21.0589651]
[1762201397927,3.97744635,166.23,166.2,21.7689651]
[1762201398139,0.72,166.26,166.2,21.7689651]
[1762201398140,3.97744635,166.25,166.2,21.7689651]
[1762201398357,3.97744635,166.24,166.2,21.7689651]
[1762201398550,3.97744635,166.23,166.2,21.7689651]
[1762201398804,3.97744635,166.25,166.2,21.7689651]
[1762201398929,3.97744635,166.24,166.2,21.7689651]
[1762201399253,3.97744635,166.23,166.2,21.7689651]
[1762201399423,3.97744635,166.25,166.2,21.7689651]
[1762201399626,3.97744635,166.24,166.2,21.7689651]
[1762201399922,3.97744635,166.23,166.21,0.71]
[1762201400146,3.97744635,166.25,166.22,6.01612321]
[1762201400352,3.97744635,166.24,166.22,6.01612321]
[1762201400650,10.02191668,166.3,166.23,0.71]
[1762201400651,3.97744635,166.27,166.23,0.71]
[1762201400947,3.97744635,166.29,166.23,0.71]
[1762201401131,0.72,166.27,166.21,6.01640688]
[1762201401442,3.97744635,166.26,166.21,21.7676198]
[1762201401638,3.97744635,166.25,166.21,21.7676198]
[1762201401843,3.97744635,166.26,166.22,0.71]
[1762201402027,3.97744635,166.25,166.23,6.01576129]
[1762201402351,3.97744635,166.24,166.23,6.01576129]
[1762201402548,3.97744635,166.25,166.23,6.01576129]
[1762201402849,3.97744635,166.24,166.22,6.01608537]
[1762201403048,4.69744635,166.25,166.22,6.01608537]
[1762201403224,3.97744635,166.24,166.22,6.01608537]
[1762201403423,3.97744635,166.23,166.22,6.01608537]
[1762201403647,3.97744635,166.24,166.22,6.01608537]
[1762201403831,3.97744635,166.23,166.22,6.01608537]
[1762201404033,3.97744635,166.24,166.22,6.01608537]
[1762201404244,3.97744635,166.23,166.22,6.01608537]
[1762201404443,3.97744635,166.24,166.22,6.01608537]
[1762201404720,3.97744635,166.23,166.22,6.01608537]
[1762201404947,4.69744635,166.27,166.22,6.01608537]
[1762201405132,3.97744635,166.26,166.22,6.01608537]
[1762201405324,3.97744635,166.25,166.23,0.71]
[1762201405544,3.97744635,166.24,166.23,0.71]
[1762201405946,3.97744635,166.24,166.23,6.72576129]
[1762201406626,3.97744635,166.24,166.23,6.01576129]
[1762201406827,3.97744635,166.24,166.23,6.72576129]
[1762201407029,3.97744635,166.24,166.23,6.01576129]
[1762201408543,3.97744635,166.24,166.22,15.04030802]
[1762201408742,3.97744635,166.23,166.22,15.04030802]
[1762201408942,3.97744635,166.23,166.22,15.76030802]
[1762201409427,3.97744635,166.23,166.22,15.04030802]
[1762201409634,3.97744635,166.23,166.22,21.77643123]
[1762201410242,3.97744635,166.25,166.22,21.77643123]
[1762201410443,3.97744635,166.24,166.23,0.72]
[1762201411234,3.97744635,166.28,166.23,0.72]
[1762201411531,3.97744635,166.27,166.24,21.05389797]
[1762201411732,3.97744635,166.26,166.24,21.05389797]
[1762201411933,3.97744635,166.25,166.24,21.05389797]
[1762201412153,3.97857051,166.29,166.24,51.13089508]
[1762201412351,0.7,166.3,166.24,51.13089508]
[1762201412649,0.7,166.3,166.24,21.05389797]
[1762201413037,0.7,166.3,166.24,21.75389797]
[1762201413238,0.7,166.3,166.24,21.05389797]
[1762201413835,2.62985428,166.3,166.24,6.01539942]
[1762201414036,0.7,166.3,166.24,6.01539942]
[1762201414250,2.60985428,166.29,166.24,6.01539942]
[1762201414674,20.592,166.27,166.23,6.0157088]
[1762201415162,0.68,166.26,166.23,6.0157088]
[1762201415638,0.68,166.26,166.22,15.0400428]
[1762201420051,0.68,166.26,166.21,0.7]
[1762201421159,0.68,166.26,166.22,6.01612321]
[1762201421465,0.68,166.26,166.22,21.05643123]
[1762201423081,1.92985428,166.29,166.23,0.02]
[1762201423082,6.5865034,166.29,166.23,0.02]
[1762201423252,6.5865034,166.31,166.23,0.02]
[1762201423446,0.68,166.31,166.23,0.02]
[1762201423648,6.5865034,166.31,166.23,0.02]
[1762201423865,7.2665034,166.3,166.23,0.02]
[1762201424073,4.65277295,166.29,166.23,0.02]
[1762201424254,3.97277295,166.28,166.23,0.02]
[1762201424449,3.97277295,166.27,166.23,0.02]
[1762201424650,3.97277295,166.26,166.23,0.02]
[1762201424847,3.97277295,166.25,166.23,0.02]
[1762201425154,3.97277295,166.29,166.23,0.02]
[1762201425458,3.97277295,166.28,166.23,0.02]
[1762201425678,3.97277295,166.27,166.23,0.02]
[1762201425844,3.97277295,166.26,166.23,0.02]
[1762201426050,3.97277295,166.25,166.23,0.02]
[1762201426250,3.97277295,166.29,166.23,0.02]
[1762201426475,3.97277295,166.28,166.23,0.02]
[1762201426675,3.97277295,166.27,166.23,0.02]
[1762201426980,3.97277295,166.26,166.21,6.01648516]
[1762201427157,5.90262723,166.25,166.18,0.7]
[1762201427353,5.90262723,166.24,166.17,15.04419228]
[1762201427668,1.92985428,166.22,166.16,6.01829561]
[1762201427867,8.93172399,166.21,166.16,6.01829561]
[1762201428189,8.93172399,166.2,166.15,6.01855476]
[1762201428390,3.97277295,166.19,166.15,6.01855476]
[1762201428552,3.97277295,166.18,166.15,6.01855476]
[1762201428751,3.97277295,166.17,166.16,0.7]
[1762201428968,3.97277295,166.18,166.15,21.76519935]
[1762201429194,5.63895104,166.2,166.15,21.06519935]
[1762201429195,3.97277295,166.17,166.15,21.06519935]
[1762201429370,3.97277295,166.18,166.15,6.01855476]
[1762201429582,3.97277295,166.17,166.15,6.01855476]
[1762201429779,3.97277295,166.16,166.15,6.71855476]
[1762201430089,3.97277295,166.18,166.15,6.71855476]
[1762201430281,3.97277295,166.18,166.15,21.76519935]
[1762201430698,3.97277295,166.18,166.16,0.7]
[1762201430896,3.97277295,166.19,166.16,0.7]
[1762201431072,3.97277295,166.18,166.15,21.06519935]
[1762201431272,3.97277295,166.18,166.15,21.76519935]
[1762201431717,4.65277295,166.19,166.15,21.76519935]
[1762201432009,3.97277295,166.2,166.15,21.06519935]
[1762201432166,3.97277295,166.19,166.16,0.7]
[1762201432370,3.97277295,166.2,166.16,0.7]
[1762201432677,3.97277295,166.19,166.16,0.7]
[1762201432875,3.97277295,166.2,166.16,0.7]
[1762201433078,3.97277295,166.19,166.16,0.7]
[1762201433290,8.93172399,166.21,166.16,0.7]
[1762201433485,3.97277295,166.2,166.17,21.06276704]
[1762201433672,3.97277295,166.21,166.17,21.06276704]
[1762201433872,3.97277295,166.21,166.18,0.7]
[1762201434068,3.97277295,166.22,166.18,0.7]
[1762201434292,3.97277295,166.21,166.18,0.7]
[1762201434481,3.97277295,166.2,166.18,0.7]
[1762201434794,0.68,166.22,166.18,0.7]
[1762201435003,3.96594601,166.21,166.18,0.7]
[1762201435203,3.96594601,166.2,166.18,0.7]
[1762201435498,3.96594601,166.21,166.18,0.7]
[1762201435678,3.96594601,166.2,166.19,6.01720921]
[1762201435878,3.96594601,166.21,166.19,6.01720921]
[1762201436077,0.68,166.22,166.19,6.01720921]
[1762201436078,3.96594601,166.2,166.19,6.01720921]
[1762201436278,3.96594601,166.21,166.19,6.01720921]
[1762201436498,3.96594601,166.2,166.19,6.01720921]
[1762201436705,3.96594601,166.21,166.19,6.01720921]
[1762201436877,3.96594601,166.2,166.19,6.01720921]
[1762201437071,3.96594601,166.21,166.19,0.7]
[1762201437271,3.96594601,166.2,166.17,9.78882769]
[1762201437477,3.96594601,166.22,166.17,9.78882769]
[1762201437686,3.96594601,166.24,166.17,9.78882769]
[1762201437981,3.96594601,166.23,166.18,0.7]
[1762201438181,3.96594601,166.22,166.18,0.7]
[1762201438407,3.96594601,166.24,166.18,0.7]
[1762201438583,3.96594601,166.23,166.18,0.7]
[1762201438778,3.96594601,166.22,166.18,0.7]
[1762201438979,3.96594601,166.24,166.18,0.7]
[1762201439183,3.96594601,166.23,166.18,0.7]
[1762201439392,3.96594601,166.22,166.19,21.06023225]
[1762201439681,5.63743251,166.25,166.17,6.5865034]
[1762201439682,3.96594601,166.21,166.17,6.5865034]
[1762201439979,3.96594601,166.2,166.16,0.7]
[1762201440178,4.95743251,166.21,166.16,0.7]
[1762201440179,3.96594601,166.19,166.16,0.7]
[1762201440399,3.96594601,166.2,166.16,0.7]
[1762201440580,3.96594601,166.19,166.14,20.592]
[1762201440898,3.96594601,166.18,166.14,0.7]
[1762201441074,3.96594601,166.19,166.14,0.7]
[1762201441277,3.96594601,166.18,166.15,6.01865783]
[1762201441601,3.96594601,166.17,166.15,6.01865783]
[1762201441893,3.96594601,166.19,166.15,21.76530242]
[1762201442208,3.96594601,166.18,166.15,21.06530242]
[1762201442384,3.96594601,166.19,166.15,21.76530242]
[1762201442589,3.96594601,166.18,166.15,21.76530242]
[1762201442798,3.96594601,166.19,166.15,21.06530242]
[1762201443000,3.96594601,166.18,166.15,21.06530242]
[1762201443303,3.96594601,166.18,166.15,21.78530242]
[1762201443624,3.96594601,166.18,166.13,6.01914339]
[1762201443902,1.92985428,166.16,166.12,6.11970612]
[1762201444101,3.96594601,166.15,166.12,6.11970612]
[1762201444304,3.96594601,166.14,166.12,0.1]
[1762201444484,3.96594601,166.13,166.12,0.1]
[1762201444679,4.62594601,166.13,166.12,0.1]
[1762201444899,0.66,166.13,166.12,6.11974476]
[1762201445095,0.66,166.13,166.12,0.1]
[1762201445609,4.62594601,166.13,166.12,0.1]
[1762201445902,11.5132328,166.13,166.12,0.1]
[1762201447297,0.66,166.13,166.12,0.1]
[1762201447623,9.72554009,166.13,166.12,0.1]
[1762201447916,21.44422206,166.13,166.12,0.1]
[1762201448588,27.46360447,166.13,166.12,0.1]
[1762201449601,21.44422206,166.13,166.12,0.1]
[1762201450405,27.46360447,166.13,166.12,0.1]
[1762201450703,6.69796186,166.13,166.12,0.1]
[1762201450894,6.55580029,166.13,166.12,0.1]
[1762201451299,6.55580029,166.13,166.1,0.1]
[1762201451300,20.592,166.11,166.1,0.1]
[1762201451485,0.14216157,166.09,166.08,0.1]
[1762201451684,2.07201585,166.09,166.08,0.1]
[1762201451905,16.48678955,166.09,166.08,0.1]
[1762201452083,44.35059253,166.09,166.08,0.1]
[1762201452484,57.30455906,166.09,166.08,0.1]
[1762201452999,36.71255906,166.09,166.08,0.1]
[1762201453305,0.14216157,166.07,166.0,0.1]
[1762201453509,20.592,166.04,166.0,0.1]
[1762201453709,20.592,166.04,165.82,0.62502965]
[1762201453710,20.592,165.98,165.87,0.72]
[1762201453892,24.70010758,165.97,165.87,0.72]
[1762201454098,5.04094234,165.94,165.87,20.592]
[1762201454483,5.04094234,165.94,165.86,0.72]
[1762201454691,3.96594601,165.96,165.83,18.11867733]
[1762201455005,3.96594601,165.96,165.79,1.99999999]
[1762201455006,20.592,165.89,165.79,0.72]
[1762201455398,20.592,165.89,165.81,6.03099933]
[1762201455713,20.592,165.89,165.79,20.592]
[1762201455714,0.14216157,165.88,165.79,20.592]
[1762201456010,20.592,165.87,165.77,0.72]
[1762201456313,28.38427557,165.89,165.77,0.72]
[1762201456616,20.592,165.89,165.77,0.72]
[1762201456812,24.48604457,165.88,165.78,30.38082769]
[1762201457113,0.14216157,165.91,165.79,0.14216157]
[1762201457296,3.88873598,165.94,165.82,9.78882769]
[1762201457611,20.592,165.93,165.84,21.1046792]
[1762201458001,7.79227557,165.91,165.84,21.1046792]
[1762201458396,7.79227557,165.9,165.84,21.1046792]
[1762201458601,7.79227557,165.91,165.84,21.1046792]
[1762201458797,32.27318889,165.92,165.84,21.1046792]
[1762201459000,20.592,165.92,165.84,21.1046792]
[1762201459319,7.79227557,165.97,165.85,0.72]
[1762201459517,7.79227557,165.97,165.86,21.10213432]
[1762201459700,20.592,165.94,165.86,21.10213432]
[1762201459900,7.79227557,165.94,165.86,21.10213432]
[1762201460109,9.78882769,165.96,165.86,6.02918123]
[1762201460301,0.14216157,165.94,165.86,6.02918123]
[1762201460508,7.79227557,165.93,165.86,6.02918123]
[1762201460819,7.93335854,165.96,165.86,21.82213432]
[1762201461014,7.79227557,165.98,165.87,9.78882769]
[1762201461215,20.592,165.97,165.87,27.90531671]
[1762201461517,7.79227557,165.97,165.88,21.09959006]
[1762201461717,11.67053005,165.97,165.88,21.09959006]
[1762201462024,28.38427557,165.98,165.88,21.09959006]
[1762201462337,28.38427557,165.98,165.84,20.73416157]
[1762201462338,7.79227557,165.94,165.85,6.02954476]
[1762201462499,7.79227557,165.9,165.85,6.02954476]
[1762201462692,20.592,165.92,165.85,6.02954476]
[1762201462693,7.79227557,165.89,165.85,6.02954476]
[1762201463124,4.01662478,165.91,165.85,6.02954476]
[1762201463125,7.79227557,165.9,165.85,6.02954476]
[1762201463296,3.87446321,165.91,165.85,6.02954476]
[1762201463622,20.592,165.92,165.83,21.10595187]
[1762201463819,28.38427557,165.92,165.83,21.10595187]
[1762201464119,20.592,165.95,165.84,0.72]
[1762201464318,20.592,165.93,165.84,0.72]
[1762201464821,7.79227557,165.93,165.84,0.72]
[1762201465123,7.79227557,165.93,165.82,18.12086617]
[1762201465124,7.79227557,165.87,165.82,18.12086617]
[1762201465313,7.79227557,165.86,165.77,6.0324546]
[1762201465620,3.86767618,165.89,165.76,10.50882769]
[1762201465621,11.65995175,165.89,165.79,51.26967849]
[1762201465923,11.65995175,165.89,165.79,71.86167849]
[1762201466618,28.38427557,165.9,165.8,9.78882769]
[1762201467005,20.592,165.9,165.8,9.78882769]
[1762201467202,20.592,165.9,165.79,72.58167849]
[1762201467203,7.79227557,165.89,165.79,27.34372688]
[1762201467402,3.86422219,165.89,165.81,21.10849767]
[1762201467604,28.38427557,165.92,165.81,21.82849767]
[1762201467815,3.86481638,165.91,165.81,21.82849767]
[1762201468021,7.79227557,165.89,165.81,21.10849767]
[1762201468423,20.592,165.89,165.81,21.10849767]
[1762201468619,28.38427557,165.89,165.81,21.10849767]
[1762201468920,3.86379154,165.88,165.81,21.10849767]
[1762201469526,20.592,165.89,165.81,15.07749834]
[1762201470195,7.79227557,165.91,165.81,15.07749834]
[1762201470196,3.86544592,165.88,165.81,15.07749834]
[1762201470401,3.86514088,165.9,165.81,15.07749834]
[1762201470819,9.78882769,165.95,165.82,31.10082769]
[1762201471201,20.592,165.92,165.82,31.10082769]
[1762201471397,3.86555008,165.91,165.82,31.10082769]
[1762201471601,3.86555008,165.91,165.83,51.25731169]
[1762201472022,3.86555008,165.91,165.84,10.50882769]
[1762201472328,0.68,165.94,165.84,10.50882769]
[1762201472507,3.15161792,165.93,165.84,10.50882769]
[1762201473105,3.15161792,165.93,165.8,0.67]
[1762201473106,17.58110326,165.9,165.8,0.67]
[1762201473333,11.65782565,165.89,165.8,0.67]
[1762201473510,11.65782565,165.89,165.81,21.10849767]
[1762201473705,7.79227557,165.88,165.81,6.03099933]
[1762201473925,12.33782565,165.89,165.81,6.70099933]
[1762201474133,3.86555008,165.88,165.81,21.77849767]
[1762201474329,3.86555008,165.88,165.81,6.70099933]
[1762201474525,3.86555008,165.88,165.82,0.67]
[1762201474820,3.86555008,165.91,165.84,20.592]
[1762201475141,23.74361792,165.93,165.84,20.592]
[1762201475334,3.86555008,165.92,165.85,0.67]
[1762201475635,3.86555008,165.92,165.86,21.10213432]
[1762201476140,3.15161792,165.93,165.86,21.10213432]
[1762201476141,7.017168,165.93,165.86,21.10213432]
[1762201476334,7.017168,165.93,165.87,0.67]
[1762201476641,23.74361792,165.93,165.87,0.67]
[1762201476818,3.86555008,165.92,165.87,0.67]
[1762201477019,3.15161792,165.93,165.87,0.67]
[1762201477918,3.15161792,165.93,165.84,21.7746792]
[1762201477919,20.73416157,165.92,165.84,21.7746792]
[1762201478118,3.86555008,165.91,165.84,21.7746792]
[1762201478841,3.86555008,165.91,165.85,0.67]
[1762201479037,3.15161792,165.93,165.85,0.67]
[1762201479225,24.45685486,165.96,165.86,9.78882769]
[1762201479432,3.86485486,165.95,165.86,9.78882769]
[1762201479641,3.15108522,165.96,165.88,21.09959006]
[1762201480443,7.01594008,165.96,165.88,21.76959006]
[1762201480832,3.15108522,165.96,165.89,0.67]
[1762201481339,7.01594008,165.96,165.89,0.67]
[1762201481745,7.01594008,165.96,165.9,21.0970464]
[1762201481928,7.69594008,165.96,165.9,21.0970464]
[1762201482135,3.83108522,165.96,165.9,21.0970464]
[1762201482341,3.86485486,165.95,165.91,0.67]
[1762201482548,3.86485486,165.96,165.91,0.67]
[1762201482855,0.68,165.96,165.91,0.67]
[1762201483551,4.54485486,165.96,165.91,0.67]
[1762201483752,0.68,165.96,165.92,21.09450337]
[1762201484045,3.86485486,165.96,165.92,21.76450337]
[1762201484230,3.86485486,165.95,165.92,21.76450337]
[1762201484431,3.86485486,165.96,165.92,21.76450337]
[1762201484637,3.86485486,165.95,165.92,21.76450337]
[1762201484954,3.86485486,165.96,165.92,21.76450337]
[1762201485244,3.86485486,165.95,165.92,21.76450337]
[1762201485443,3.86485486,165.96,165.92,21.09450337]
[1762201485649,3.86485486,165.95,165.93,0.67]
[1762201485829,0.68,165.97,165.92,6.02700096]
[1762201485830,3.86485486,165.96,165.92,6.02700096]
[1762201486143,0.68,165.97,165.93,0.67]
[1762201486144,3.86485486,165.95,165.93,0.67]
[1762201486446,3.86485486,165.96,165.92,6.69700096]
[1762201486646,3.86485486,165.95,165.92,6.69700096]
[1762201486831,3.86485486,165.94,165.92,6.02700096]
[1762201487034,4.54485486,165.96,165.92,6.02700096]
[1762201487233,3.86485486,165.95,165.91,6.02736423]
[1762201487435,3.86485486,165.94,165.91,6.02736423]
[1762201487762,3.86485486,165.93,165.92,0.67]
[1762201488047,3.86485486,165.93,165.91,6.69736423]
[1762201488225,3.86485486,165.92,165.91,6.69736423]
[1762201488430,3.86485486,165.92,165.91,6.02736423]
[1762201488935,3.86485486,165.92,165.91,6.69736423]
[1762201491161,3.86485486,165.92,165.9,21.09635939]
[1762201491349,3.86485486,165.91,165.9,6.02772754]
[1762201491662,3.86485486,165.91,165.88,15.07104681]
[1762201491865,3.86485486,165.9,165.88,15.74104681]
[1762201492046,3.86485486,165.89,165.86,0.67]
[1762201492369,3.86485486,165.88,165.86,0.67]
[1762201492538,3.86485486,165.91,165.86,0.67]
[1762201492737,3.86485486,165.9,165.86,0.67]
[1762201492956,3.86485486,165.89,165.86,15.7427526]
[1762201493166,3.86485486,165.88,165.86,21.77193383]
[1762201493474,3.86485486,165.87,165.86,21.10193383]
[1762201493671,3.86485486,165.91,165.86,51.24784001]
[1762201493836,3.86485486,165.9,165.87,0.67]
[1762201494040,3.86485486,165.89,165.87,0.67]
[1762201494278,3.86485486,165.88,165.87,0.67]
[1762201494441,3.86485486,165.88,165.86,6.02918123]
[1762201494760,0.68,165.92,165.86,6.02918123]
[1762201494761,3.86485486,165.87,165.86,6.02918123]
[1762201495258,3.86485486,165.87,165.85,21.10271649]
[1762201495458,3.86485486,165.86,165.85,21.10271649]
[1762201495634,3.86485486,165.86,165.85,6.02954476]
[1762201496359,3.86485486,165.86,165.85,6.69954476]
[1762201496965,4.89375531,165.9,165.85,51.92113052]
[1762201497166,4.89375531,165.92,165.85,21.77340668]
[1762201497347,4.89375531,165.88,165.83,21.10595187]
[1762201497675,4.89375531,165.9,165.85,0.67]
[1762201497845,4.89375531,165.91,165.85,0.67]
[1762201498246,5.57375531,165.91,165.85,0.67]
[1762201499276,0.68,165.91,165.86,21.10213432]
[1762201499479,0.68,165.91,165.86,6.02918123]
[1762201499685,4.89375531,165.9,165.86,6.02918123]
[1762201499852,4.89375531,165.89,165.86,6.02918123]
[1762201500350,0.14216157,165.86,165.78,0.67]
[1762201500556,7.93443714,165.84,165.78,0.67]
[1762201500770,12.85909299,165.84,165.78,0.67]
[1762201500992,0.68,165.83,165.78,0.67]
[1762201501353,4.92465585,165.85,165.79,21.11104408]
[1762201501585,0.68,165.85,165.79,21.11104408]
[1762201501791,4.92465585,165.87,165.8,0.67]
[1762201501948,4.92465585,165.88,165.8,0.67]
[1762201502156,4.92465585,165.89,165.82,20.592]
[1762201502467,5.60465585,165.9,165.82,20.592]
[1762201502657,7.79227557,165.92,165.83,0.7]
[1762201502658,4.92465585,165.89,165.83,0.7]
[1762201503164,4.92465585,165.89,165.79,61.05850618]
[1762201503165,0.69,165.88,165.81,0.7]
[1762201503366,0.69,165.88,165.82,21.10722469]
[1762201503892,4.92465585,165.9,165.83,0.7]
[1762201504077,0.69,165.89,165.83,0.7]
[1762201504383,4.92465585,165.9,165.83,0.7]
[1762201504570,20.592,165.91,165.83,0.7]
[1762201504780,21.282,165.91,165.83,0.7]
[1762201505080,0.69,165.91,165.83,21.292]
[1762201505281,5.60722513,165.93,165.85,21.10340668]
[1762201505479,0.69,165.92,165.85,21.10340668]
[1762201505683,0.69,165.92,165.86,0.7]
[1762201507387,0.69,165.92,165.87,21.10086211]
[1762201507885,4.91722513,165.93,165.88,0.7]
[1762201508076,0.69,165.92,165.88,0.7]
[1762201508283,4.91722513,165.93,165.88,0.7]
[1762201508479,0.69,165.92,165.87,6.02881774]
[1762201508666,0.69,165.92,165.88,0.7]
[1762201508866,0.69,165.92,165.87,6.02881774]
[1762201509187,4.62505644,165.92,165.87,21.80086211]
[1762201509371,0.69,165.92,165.87,21.80086211]
[1762201510567,7.79227557,165.89,165.83,6.03027196]
[1762201510882,16.64455714,165.9,165.83,6.03027196]
[1762201511087,11.72733201,165.89,165.83,21.80527043]
[1762201511286,7.79227557,165.88,165.83,6.03027196]
[1762201511465,12.41733201,165.88,165.83,6.03027196]
[1762201511667,0.69,165.87,165.83,6.03027196]
[1762201511987,0.69,165.87,165.83,6.73027196]
[1762201512370,0.69,165.87,165.83,21.80595187]
[1762201512570,0.69,165.89,165.84,0.7]
[1762201512764,9.54228157,165.91,165.84,0.7]
[1762201513169,3.93505644,165.91,165.84,0.7]
[1762201513374,29.35138953,165.92,165.85,21.10340668]
[1762201513668,3.93505644,165.91,165.85,21.10340668]
[1762201513883,4.62505644,165.92,165.86,0.7]
[1762201514072,0.69,165.92,165.86,0.7]
[1762201515201,0.69,165.92,165.85,21.10340668]
[1762201515391,4.62505644,165.92,165.85,21.10340668]
[1762201515765,0.69,165.91,165.85,21.10340668]
[1762201516474,5.04963307,165.9,165.84,6.72982813]
[1762201516781,5.04963307,165.88,165.82,6.73063562]
[1762201516984,5.73963307,165.89,165.82,6.73063562]
[1762201517179,9.67468951,165.89,165.82,6.73063562]
[1762201517488,9.67468951,165.89,165.82,21.80722469]
[1762201517698,5.04963307,165.89,165.82,21.80722469]
[1762201517996,5.73963307,165.88,165.82,21.80722469]
[1762201518366,5.73963307,165.87,165.82,21.10722469]
[1762201518792,14.8804118,165.89,165.82,6.03063562]
[1762201518793,0.69,165.86,165.82,6.03063562]
[1762201519000,0.69,165.86,165.82,21.10722469]
[1762201519202,3.93505644,165.89,165.82,21.10722469]
[1762201519377,3.93505644,165.89,165.84,21.1046792]
[1762201519700,0.69,165.9,165.84,21.1046792]
[1762201519883,0.69,165.89,165.84,6.02990834]
[1762201520195,0.69,165.89,165.84,6.72990834]
[1762201520402,0.69,165.89,165.85,0.7]
[1762201520698,0.69,165.89,165.84,6.02990834]
[1762201520895,0.69,165.89,165.84,6.72990834]
[1762201521101,0.69,165.89,165.84,6.02990834]
[1762201521480,9.54228157,165.89,165.83,6.03027196]
[1762201521684,20.62021581,165.89,165.83,6.03027196]
[1762201521885,5.04963307,165.87,165.8,6.03136308]
[1762201522181,5.04963307,165.85,165.8,6.03136308]
[1762201522577,5.04963307,165.82,165.69,0.1]
[1762201522803,20.592,165.7,165.69,0.1]
[1762201523002,0.14216157,165.67,165.53,0.7]
[1762201523298,20.592,165.66,165.54,0.7]
[1762201523596,0.69,165.64,165.55,20.64164904]
[1762201523797,3.4249144,165.65,165.56,0.7]
[1762201524098,4.91722513,165.73,165.59,9.78882769]
[1762201524399,26.19922513,165.76,165.65,9.78882769]
[1762201524602,0.69,165.76,165.66,0.14216157]
[1762201524781,0.69,165.76,165.68,0.14216157]
[1762201525290,0.69,165.76,165.69,0.7]
[1762201525473,3.154,165.77,165.7,6.03500301]
[1762201525894,9.18649387,165.77,165.7,0.7]
[1762201526094,9.87649387,165.77,165.7,0.7]
[1762201526598,9.87649387,165.77,165.65,25.0228964]
[1762201526599,0.69,165.76,165.66,6.03646021]
[1762201526785,0.69,165.76,165.68,0.7]
[1762201526981,3.154,165.77,165.68,0.7]
[1762201527377,9.87669746,165.77,165.68,0.7]
[1762201527577,9.87669746,165.77,165.68,6.73551889]
[1762201527981,3.844,165.77,165.69,0.67]
[1762201528379,0.69,165.77,165.69,0.67]
[1762201528792,15.9988586,165.79,165.69,0.67]
[1762201528793,6.03209342,165.78,165.69,0.67]
[1762201529178,0.71,165.79,165.69,0.67]
[1762201529487,6.74173794,165.79,165.7,6.03500301]
[1762201529681,6.74173794,165.79,165.71,0.67]
[1762201529906,31.54076289,165.8,165.71,0.67]
[1762201530076,26.62353776,165.8,165.71,0.67]
[1762201530276,36.59039596,165.8,165.71,0.67]
[1762201530477,9.9668582,165.79,165.71,0.67]
[1762201530695,10.6768582,165.79,165.71,0.67]
[1762201531095,41.70194548,165.8,165.71,0.67]
[1762201531096,4.91722513,165.8,165.71,0.67]
[1762201531300,4.91722513,165.8,165.72,30.38082769]
[1762201531474,6.54143714,165.83,165.76,20.592]
[1762201531475,4.91722513,165.83,165.76,20.592]
[1762201531675,5.62722513,165.87,165.77,9.78882769]
[1762201531878,4.91722513,165.86,165.77,10.45882769]
[1762201532175,5.62722513,165.87,165.78,0.67]
[1762201532380,4.91722513,165.86,165.78,0.67]
[1762201533404,4.91722513,165.85,165.78,0.67]
[1762201533581,4.91722513,165.85,165.79,6.03172688]
[1762201533912,0.66,165.89,165.79,6.03172688]
[1762201533913,4.91722513,165.86,165.79,6.03172688]
[1762201534075,4.91722513,165.86,165.8,0.71]
[1762201534894,4.91722513,165.88,165.8,0.71]
[1762201535081,5.70963307,165.92,165.8,0.71]
[1762201535082,4.91722513,165.87,165.8,0.71]